fUSD/lending_fUSD_20250818
["ID","MTS","AMOUNT","RATE_DAILY","PERIOD"]
[380040909,1755499267449,-500.0,0.0003,120]
[380040910,1755499267483,-1092.97190953,0.0003,120]
[380040911,1755499267509,-842.58379914,0.0003,120]
[380040912,1755499267540,-747.98616235,0.0003,120]
[380040913,1755499267567,-345.0,0.0003,120]
[380040914,1755499267593,-1015.04883498,0.0003,120]
[380040915,1755499267620,-2000.0,0.0003,90]
[380040916,1755499267647,-500.0,0.0003,120]
[380040917,1755499267675,-1501.17071853,0.0003,120]
[380040918,1755499267704,-1000.0,0.0003,120]
[380040919,1755499267732,-1000.0,0.0003,120]
[380040920,1755499267759,-1000.0,0.0003,120]
[380040921,1755499267789,-1000.0,0.0003,120]
[380040922,1755499267816,-1000.0,0.0003,120]
[380040923,1755499267844,-439.92344072,0.0003,120]
[380040924,1755499267872,-350.0,0.0003,120]
[380040925,1755499267899,-184.32827083,0.0003,60]
[380040926,1755499267926,-200.0,0.0003,120]
[380040927,1755499267952,-2647.19450892,0.0003,120]
[380040928,1755499267978,-2000.0,0.0003,30]
[380040929,1755499268005,-206.0,0.0003,30]
[380040930,1755499268034,-900.0,0.0003,60]
[380040931,1755499268061,-843.70243781,0.0003,30]
[380040932,1755499268090,-200.0,0.0003,120]
[380040933,1755499268120,-2725.32,0.0003,120]
[380040934,1755499268148,-843.78711038,0.0003,30]
[380040935,1755499268178,-1430.0,0.0003,30]
[380040936,1755499268205,-212.00699823,0.0003,120]
[380040937,1755499268233,-5582.18782308,0.0003,120]
[380040938,1755499268260,-1891.9235473,0.000301,120]
[380040939,1755499268289,-1884.14402526,0.000301,60]
[380040940,1755499268316,-262.01510076,0.0003013,120]
[380040941,1755499268342,-661.74370251,0.0003013,120]
[380040942,1755499268369,-1800.0,0.0003013,120]
[380040943,1755499268395,-1623.24826929,0.0003013,30]
[380040944,1755499268422,-574.33774904,0.0003013,120]
[380040945,1755499268448,-1337.81086412,0.0003013,120]
[380040946,1755499268475,-7503.7500705,0.00030136,120]
[380040947,1755499268501,-850.0,0.00030136,120]
[380040948,1755499268526,-850.0,0.00030136,120]
[380040949,1755499268555,-850.0,0.00030136,120]
[380040950,1755499268581,-850.0,0.00030136,120]
[380040951,1755499268611,-850.0,0.00030136,120]
[380040952,1755499268640,-850.0,0.00030136,120]
[380040953,1755499268670,-850.0,0.00030136,120]
[380040954,1755499268707,-850.0,0.00030136,120]
[380040955,1755499268733,-850.0,0.00030136,120]
[380040956,1755499268758,-850.0,0.00030136,120]
[380040957,1755499268785,-850.0,0.00030136,120]
[380040958,1755499268810,-850.0,0.00030136,120]
[380040959,1755499268837,-850.0,0.00030136,120]
[380040960,1755499268864,-850.0,0.00030136,120]
[380040961,1755499268890,-850.0,0.00030136,120]
[380040962,1755499268916,-850.0,0.00030136,120]
[380040963,1755499268943,-850.0,0.00030136,120]
[380040964,1755499268970,-850.0,0.00030136,120]
[380040965,1755499268997,-850.0,0.00030136,120]
[380040966,1755499269024,-850.0,0.00030136,120]
[380040967,1755499269052,-850.0,0.00030136,120]
[380040968,1755499269079,-850.0,0.00030136,120]
[380040969,1755499269108,-850.0,0.00030136,120]
[380040970,1755499269137,-468.90693477,0.00030136,120]
[380040971,1755499269165,-500.0,0.00030136,120]
[380040972,1755499269191,-3318.35332446,0.00030137,120]
[380040973,1755499269217,-2238.40634649,0.00030137,120]
[380040974,1755499269243,-302.0,0.00030137,120]
[380040975,1755499269270,-2000.0,0.00030137,120]
[380040976,1755499269297,-2000.0,0.00030137,120]
[380040977,1755499269322,-2000.0,0.00030261,120]
[380040978,1755499269348,-770.0,0.000303,120]
[380040979,1755499269374,-150.0,0.00030474,30]
[380040980,1755499269399,-2000.0,0.00030685,120]
[380040981,1755499269425,-250.0,0.000308,30]
[380040982,1755499269451,-600.0,0.00030822,80]
[380040983,1755499269477,-205.0,0.00030877,42]
[380040984,1755499269502,-170089.72195873,0.00030888,60]
[380040985,1755499269528,-3867.8803817,0.00030888,60]
[380040986,1755499269557,-2228.01,0.00030909,30]
[380040987,1755499269584,-1605.0,0.00031,30]
[380040988,1755499269610,-203450.34918788,0.00031,120]
[380040989,1755499269654,-1800.0,0.00031,32]
[380040990,1755499269685,-200.0,0.00031,40]
[380040991,1755499269712,-124997.40661355,0.00031,120]
[380040992,1755499269738,-26693.94415691,0.00031,120]
[380040993,1755499269766,-322.0,0.00031,120]
[380040994,1755499269796,-843.20366966,0.00031,120]
[380040995,1755499269822,-1430.0,0.00031,30]
[380040996,1755499269847,-160.0,0.00031,120]
[380040997,1755499269873,-2000.0,0.00031011,120]
[380040998,1755499269898,-150.0,0.00031022,30]
[380040999,1755499269925,-500.0,0.0003113,120]
[380041000,1755499269951,-200.0,0.00031191,120]
[380041001,1755499269976,-200.0,0.00031191,120]
[380041002,1755499270002,-2326.0,0.000312,120]
[380041003,1755499270028,-1107.59,0.000312,30]
[380041004,1755499270055,-2000.0,0.00031233,120]
[380041005,1755499270083,-600.0,0.000314,120]
[380041006,1755499270112,-2222.22,0.00031485,30]
[380041007,1755499270138,-500.0,0.00031506,120]
[380041008,1755499270165,-150.0,0.0003157,30]
[380041009,1755499270194,-2000.0,0.00031761,120]
[380041010,1755499270219,-2000.0,0.00031781,120]
[380041011,1755499270246,-1800.0,0.00032,33]
[380041012,1755499270272,-1000.76,0.00032,30]
[380041013,1755499270300,-1000.0,0.00032,30]
[380041014,1755499270327,-700.0,0.00032,120]
[380041015,1755499270352,-854.69904562,0.00032,30]
[380041016,1755499270379,-10000.0,0.00032,120]
[380041017,1755499270404,-1500.0,0.00032,30]
[380041018,1755499270430,-2000.0,0.00032,32]
[380041019,1755499270720,-3013.14322605,0.00032,30]
[380041020,1755499270746,-2112.86455441,0.00032,120]
[380041021,1755499270772,-1000.0,0.00032,120]
[380041022,1755499270798,-6925.98098571,0.00032,120]
[380041023,1755499270824,-1430.0,0.00032,30]
[380041024,1755499270851,-1000.0,0.000321,120]
[380041025,1755499270877,-150.0,0.00032118,30]
[380041026,1755499270904,-2000.0,0.00032329,120]
[380041027,1755499270931,-27000.0,0.000325,88]
[380041028,1755499270959,-500.0,0.000325,120]
[380041029,1755499270986,-1107.59,0.000325,120]
[380041030,1755499271014,-2000.0,0.00032511,120]
[380041031,1755499271041,-1000.0,0.000326,120]
[380041032,1755499271069,-500.0,0.00032641,120]
[380041033,1755499271098,-150.0,0.00032666,30]
[380041034,1755499271126,-5162.1895729,0.00032798,120]
[380041035,1755499271154,-1017.05692243,0.00032876,30]
[380041036,1755499271181,-1000.0,0.00032876,30]
[380041037,1755499271208,-1000.0,0.00032876,30]
[380041038,1755499271235,-186.24812274,0.00032876,30]
[380041039,1755499271262,-1000.0,0.00032876,120]
[380041040,1755499271290,-500.0,0.00032876,120]
[380041041,1755499271317,-150.0,0.00032876,36]
[380041042,1755499271349,-2000.0,0.00032877,120]
[380041043,1755499271378,-1000.0,0.00032904,120]
[380041044,1755499271405,-1000.0,0.00032931,120]
[380041045,1755499271431,-1709.05,0.00032956,60]
[380041046,1755499271457,-1000.0,0.00032958,120]
[380041047,1755499271484,-150.0,0.00032973,120]
[380041048,1755499271512,-150.0,0.00032982,120]
[380041049,1755499271541,-150.0,0.00032985,120]
[380041050,1755499271567,-1000.0,0.00032986,120]
[380041051,1755499271594,-150.0,0.00032988,120]
[380041052,1755499271622,-2867.07781415,0.00033,120]
[380041053,1755499271648,-1062.53385696,0.00033,120]
[380041054,1755499271676,-2500.0,0.00033,30]
[380041055,1755499271702,-867.49367677,0.00033,60]
[380041056,1755499271728,-7865.96,0.00033,30]
[380041057,1755499271756,-1800.0,0.00033,34]
[380041058,1755499271784,-193.66394581,0.00033,120]
[380041059,1755499271812,-1000.0,0.00033,30]
[380041060,1755499271839,-1000.0,0.00033,120]
[380041061,1755499271868,-1883.7101311,0.00033,120]
[380041062,1755499271896,-1000.0,0.00033,120]
[380041063,1755499271923,-1747.34235024,0.00033,120]
[380041064,1755499271951,-211.75121042,0.00033,120]
[380041065,1755499271979,-501.11259462,0.00033,30]
[380041066,1755499272008,-1430.0,0.00033,30]
[380041067,1755499272038,-1000.0,0.00033013,120]
[380041068,1755499272067,-1000.0,0.00033041,120]
[380041069,1755499272097,-1709.05,0.00033056,60]
[380041070,1755499272127,-2222.22,0.00033065,30]
[380041071,1755499272157,-157.0,0.00033068,58]
[380041072,1755499272186,-1171.0,0.00033075,30]
[380041073,1755499272214,-1171.0,0.00033075,30]
[380041074,1755499272242,-150.0,0.00033119,120]
[380041075,1755499272270,-16712.48,0.0003315,120]
[380041076,1755499272299,-1709.05,0.00033156,60]
[380041077,1755499272327,-150.0,0.00033156,120]
[380041078,1755499272355,-150.0,0.00033164,120]
[380041079,1755499272385,-150.0,0.00033183,120]
[380041080,1755499272413,-150.0,0.00033195,120]
[380041081,1755499272441,-150.0,0.00033214,30]
[380041082,1755499272469,-150.0,0.00033235,120]
[380041083,1755499272497,-1709.05,0.00033256,60]
[380041084,1755499272524,-2000.0,0.00033261,120]
[380041085,1755499272551,-600.0,0.000333,120]
[380041086,1755499272578,-477.0,0.0003334,30]
[380041087,1755499272606,-1709.05,0.00033356,60]
[380041088,1755499272634,-150.0,0.00033368,120]
[380041089,1755499272666,-150.0,0.0003344,120]
[380041090,1755499272696,-1709.05,0.00033456,60]
[380041091,1755499272727,-150.0,0.00033524,120]
[380041092,1755499272755,-5077.55756,0.00033524,30]
[380041093,1755499272798,-1709.05,0.00033556,60]
[380041094,1755499272827,-150.0,0.00033621,120]
[380041095,1755499272855,-150.0,0.00033622,120]
[380041096,1755499272883,-150.0,0.00033623,120]
[380041097,1755499272910,-1709.05,0.00033656,60]
[380041098,1755499272938,-150.0,0.00033691,120]
[380041099,1755499272965,-19615.02863067,0.000337,30]
[380041100,1755499272995,-1709.05,0.00033756,60]
[380041101,1755499273024,-150.0,0.00033762,30]
[380041102,1755499273054,-150.0,0.00033762,30]
[380041103,1755499273083,-3998.05549133,0.000338,30]
[380041104,1755499273124,-142633.68212363,0.000338,120]
[380041105,1755499273152,-17062.07534649,0.000338,120]
[380041106,1755499273178,-1107.59,0.000338,120]
[380041107,1755499273206,-150.0,0.00033823,120]
[380041108,1755499273234,-1709.05,0.00033856,60]
[380041109,1755499273262,-150.0,0.00033872,120]
[380041110,1755499273289,-1000.0,0.000339,120]
[380041111,1755499273316,-1171.0,0.00033902,30]
[380041112,1755499273344,-150.0,0.00033913,120]
[380041113,1755499273370,-500.0,0.00033939,60]
[380041114,1755499273398,-1709.05,0.00033956,60]
[380041115,1755499273425,-150.0,0.00033959,120]
[380041116,1755499273452,-1444.0,0.00033973,120]
[380041117,1755499273479,-150.0,0.00033973,120]
[380041118,1755499273506,-150.0,0.00033987,120]
[380041119,1755499273534,-150.0,0.0003399,120]
[380041120,1755499273560,-204.0,0.00034,90]
[380041121,1755499273588,-2857.93454159,0.00034,120]
[380041122,1755499273614,-1800.0,0.00034,35]
[380041123,1755499273640,-7865.96,0.00034,30]
[380041124,1755499273666,-111111.0,0.00034,30]
[380041125,1755499273692,-1000.0,0.00034,30]
[380041126,1755499273717,-2000.0,0.00034,34]
[380041127,1755499273745,-400.0,0.00034,120]
[380041128,1755499273773,-10030.15482433,0.00034,30]
[380041129,1755499273801,-250000.0,0.00034,30]
[380041130,1755499273830,-6087.22219208,0.00034,30]
[380041131,1755499273859,-60000.0,0.00034,30]
[380041132,1755499273887,-301.41500864,0.00034,30]
[380041133,1755499273917,-311.41613811,0.00034,30]
[380041134,1755499274210,-1025.35175824,0.00034,120]
[380041135,1755499274239,-1430.0,0.00034,30]
[380041136,1755499274269,-200.0,0.00034,30]
[380041137,1755499274297,-2000.0,0.00034011,120]
[380041138,1755499274325,-150.0,0.00034047,120]
[380041139,1755499274355,-1709.05,0.00034056,60]
[380041140,1755499274387,-150.0,0.00034064,120]
[380041141,1755499274416,-150.0,0.00034102,120]
[380041142,1755499274444,-309.82142,0.00034153,120]
[380041143,1755499274473,-1709.05,0.00034156,60]
[380041144,1755499274502,-150.0,0.00034158,120]
[380041145,1755499274532,-150.0,0.00034192,120]
[380041146,1755499274563,-150.0,0.00034206,120]
[380041147,1755499274591,-150.0,0.00034208,120]
[380041148,1755499274620,-150.0,0.0003422,120]
[380041149,1755499274648,-150.0,0.00034245,120]
[380041150,1755499274676,-500.0,0.00034246,120]
[380041152,1755499274706,-16712.48,0.00034246,120]
[380041153,1755499274733,-600.0,0.00034247,120]
[380041154,1755499274764,-1709.05,0.00034256,60]
[380041155,1755499274793,-150.0,0.00034271,120]
[380041156,1755499274821,-150.0,0.00034273,120]
[380041157,1755499274850,-150.0,0.00034307,120]
[380041158,1755499274877,-150.0,0.0003431,30]
[380041159,1755499274906,-150.0,0.0003431,30]
[380041160,1755499274935,-150.0,0.00034332,120]
[380041161,1755499274964,-150.0,0.00034332,120]
[380041162,1755499274993,-150.0,0.00034349,120]
[380041163,1755499275022,-1709.05,0.00034356,60]
[380041164,1755499275050,-150.0,0.00034399,120]
[380041165,1755499275077,-150.0,0.00034408,120]
[380041166,1755499275108,-150.0,0.00034409,120]
[380041167,1755499275135,-150.0,0.00034436,120]
[380041168,1755499275163,-1709.05,0.00034456,60]
[380041169,1755499275190,-263283.48273885,0.000345,90]
[380041170,1755499275216,-11000.0,0.000345,60]
[380041171,1755499275244,-150.0,0.00034521,120]
[380041172,1755499275271,-150.0,0.00034521,120]
[380041173,1755499275300,-1709.05,0.00034556,60]
[380041174,1755499275328,-5304.46,0.000346,120]
[380041175,1755499275355,-25064.60790706,0.000346,30]
[380041176,1755499275382,-150.0,0.00034602,120]
[380041177,1755499275408,-500.0,0.00034624,60]
[380041178,1755499275436,-150.0,0.00034628,120]
[380041179,1755499275463,-150.0,0.00034633,120]
[380041180,1755499275491,-150.0,0.00034642,120]
[380041181,1755499275545,-2222.22,0.00034646,30]
[380041182,1755499275574,-300.0,0.00034655,69]
[380041183,1755499275603,-1709.05,0.00034656,60]
[380041184,1755499275631,-700.0,0.00034656,120]
[380041185,1755499275658,-700.0,0.00034656,120]
[380041186,1755499275685,-700.0,0.00034656,120]
[380041187,1755499275712,-700.0,0.00034656,120]
[380041188,1755499275738,-700.0,0.00034656,120]
[380041189,1755499275764,-700.0,0.00034656,120]
[380041190,1755499275793,-700.0,0.00034656,120]
[380041191,1755499275819,-700.0,0.00034656,120]
[380041192,1755499275847,-700.0,0.00034656,120]
[380041193,1755499275874,-700.0,0.00034656,120]
[380041194,1755499275900,-700.0,0.00034656,120]
[380041195,1755499275927,-700.0,0.00034656,120]
[380041196,1755499275956,-700.0,0.00034656,120]
[380041197,1755499275986,-700.0,0.00034656,120]
[380041198,1755499276013,-700.0,0.00034656,120]
[380041199,1755499276042,-700.0,0.00034656,120]
[380041200,1755499276068,-700.0,0.00034656,120]
[380041201,1755499276097,-700.0,0.00034656,120]
[380041202,1755499276126,-700.0,0.00034656,120]
[380041203,1755499276158,-700.0,0.00034656,120]
[380041204,1755499276188,-700.0,0.00034656,120]
[380041205,1755499276215,-700.0,0.00034656,120]
[380041206,1755499276245,-700.0,0.00034656,120]
[380041207,1755499276274,-700.0,0.00034656,120]
[380041208,1755499276301,-700.0,0.00034656,120]
[380041209,1755499276327,-700.0,0.00034656,120]
[380041210,1755499276353,-700.0,0.00034656,120]
[380041211,1755499276380,-700.0,0.00034656,120]
[380041212,1755499276407,-700.0,0.00034656,120]
[380041213,1755499276433,-700.0,0.00034656,120]
[380041214,1755499276460,-700.0,0.00034656,120]
[380041215,1755499276486,-700.0,0.00034656,120]
[380041216,1755499276512,-700.0,0.00034656,120]
[380041217,1755499276540,-700.0,0.00034656,120]
[380041218,1755499276566,-700.0,0.00034656,120]
[380041219,1755499276592,-700.0,0.00034656,120]
[380041220,1755499276619,-700.0,0.00034656,120]
[380041221,1755499276645,-700.0,0.00034656,120]
[380041222,1755499276672,-700.0,0.00034656,120]
[380041223,1755499276697,-700.0,0.00034656,120]
[380041224,1755499276723,-700.0,0.00034656,120]
[380041225,1755499276749,-700.0,0.00034656,120]
[380041226,1755499276774,-700.0,0.00034656,120]
[380041227,1755499276802,-700.0,0.00034656,120]
[380041228,1755499276830,-700.0,0.00034656,120]
[380041229,1755499276857,-700.0,0.00034656,120]
[380041230,1755499276884,-700.0,0.00034656,120]
[380041231,1755499276911,-700.0,0.00034656,120]
[380041232,1755499276937,-700.0,0.00034656,120]
[380041233,1755499276964,-700.0,0.00034656,120]
[380041234,1755499276991,-700.0,0.00034656,120]
[380041235,1755499277017,-700.0,0.00034656,120]
[380041236,1755499277044,-700.0,0.00034656,120]
[380041237,1755499277070,-700.0,0.00034656,120]
[380041238,1755499277096,-700.0,0.00034656,120]
[380041239,1755499277123,-700.0,0.00034656,120]
[380041240,1755499277152,-700.0,0.00034656,120]
[380041241,1755499277179,-700.0,0.00034656,120]
[380041242,1755499277206,-700.0,0.00034656,120]
[380041243,1755499277235,-700.0,0.00034656,120]
[380041244,1755499277261,-700.0,0.00034656,120]
[380041245,1755499277287,-700.0,0.00034656,120]
[380041246,1755499277313,-700.0,0.00034656,120]
[380041247,1755499277339,-700.0,0.00034656,120]
[380041248,1755499277366,-700.0,0.00034656,120]
[380041249,1755499277392,-700.0,0.00034656,120]
[380041250,1755499277679,-700.0,0.00034656,120]
[380041251,1755499277719,-700.0,0.00034656,120]
[380041252,1755499277745,-700.0,0.00034656,120]
[380041253,1755499277772,-700.0,0.00034656,120]
[380041254,1755499277800,-700.0,0.00034656,120]
[380041255,1755499277828,-700.0,0.00034656,120]
[380041256,1755499277855,-700.0,0.00034656,120]
[380041257,1755499277883,-700.0,0.00034656,120]
[380041258,1755499277909,-700.0,0.00034656,120]
[380041259,1755499277941,-700.0,0.00034656,120]
[380041260,1755499277970,-700.0,0.00034656,120]
[380041261,1755499277997,-700.0,0.00034656,120]
[380041262,1755499278024,-700.0,0.00034656,120]
[380041263,1755499278053,-700.0,0.00034656,120]
[380041264,1755499278082,-700.0,0.00034656,120]
[380041265,1755499278113,-700.0,0.00034656,120]
[380041266,1755499278141,-700.0,0.00034656,120]
[380041267,1755499278168,-700.0,0.00034656,120]
[380041268,1755499278194,-700.0,0.00034656,120]
[380041269,1755499278221,-700.0,0.00034656,120]
[380041270,1755499278247,-700.0,0.00034656,120]
[380041271,1755499278275,-700.0,0.00034656,120]
[380041272,1755499278303,-700.0,0.00034656,120]
[380041273,1755499278330,-700.0,0.00034656,120]
[380041274,1755499278357,-700.0,0.00034656,120]
[380041275,1755499278384,-700.0,0.00034656,120]
[380041276,1755499278411,-700.0,0.00034656,120]
[380041277,1755499278438,-700.0,0.00034656,120]
[380041278,1755499278465,-700.0,0.00034656,120]
[380041279,1755499278492,-700.0,0.00034656,120]
[380041280,1755499278518,-700.0,0.00034656,120]
[380041281,1755499278545,-700.0,0.00034656,120]
[380041282,1755499278572,-700.0,0.00034656,120]
[380041283,1755499278599,-700.0,0.00034656,120]
[380041284,1755499278626,-152.0,0.00034656,30]
[380041285,1755499278653,-532.59042061,0.000347,90]
[380041286,1755499278680,-150.0,0.00034703,120]
[380041287,1755499278707,-1171.0,0.00034729,30]
[380041288,1755499278735,-408.26357671,0.0003475,120]
[380041289,1755499278762,-1709.05,0.00034756,60]
[380041290,1755499278791,-2000.0,0.00034761,120]
[380041291,1755499278818,-200.0,0.00034775,120]
[380041292,1755499278846,-150.0,0.0003484,120]
[380041293,1755499278874,-1709.05,0.00034856,60]
[380041294,1755499278902,-13088.30333947,0.000349,120]
[380041295,1755499278930,-2000.0,0.000349,60]
[380041296,1755499278958,-6688.0,0.0003492,30]
[380041297,1755499278986,-502.82835427,0.0003492,30]
[380041298,1755499279014,-200.0,0.0003492,30]
[380041299,1755499279044,-151.0,0.0003492,30]
[380041300,1755499279072,-151.0,0.0003492,30]
[380041301,1755499279101,-600.0,0.0003492,30]
[380041302,1755499279131,-6935.456,0.0003492,30]
[380041303,1755499279159,-160.0,0.0003492,30]
[380041304,1755499279191,-151.0,0.0003492,30]
[380041305,1755499279218,-7192.067872,0.0003492,30]
[380041306,1755499279245,-151.0,0.0003492,30]
[380041307,1755499279272,-600.0,0.0003492,30]
[380041308,1755499279299,-160.0,0.0003492,30]
[380041309,1755499279325,-207.4,0.0003492,30]
[380041310,1755499279351,-151.0,0.0003492,30]
[380041311,1755499279378,-7458.17438326,0.0003492,30]
[380041312,1755499279405,-160.0,0.0003492,30]
[380041313,1755499279431,-600.0,0.0003492,30]
[380041314,1755499279458,-151.0,0.0003492,30]
[380041315,1755499279484,-151.0,0.0003492,30]
[380041316,1755499279511,-7734.12683544,0.0003492,30]
[380041317,1755499279538,-160.0,0.0003492,30]
[380041318,1755499279566,-600.0,0.0003492,30]
[380041319,1755499279592,-215.0738,0.0003492,30]
[380041320,1755499279621,-151.0,0.0003492,30]
[380041321,1755499279647,-300.0,0.0003492,30]
[380041322,1755499279673,-151.0,0.0003492,30]
[380041323,1755499279699,-600.0,0.0003492,30]
[380041324,1755499279725,-223.0315306,0.0003492,30]
[380041325,1755499279752,-8020.28952835,0.0003492,30]
[380041326,1755499279779,-300.0,0.0003492,30]
[380041327,1755499279808,-151.0,0.0003492,30]
[380041328,1755499279837,-151.0,0.0003492,30]
[380041329,1755499279867,-160.0,0.0003492,30]
[380041330,1755499279896,-600.0,0.0003492,30]
[380041331,1755499279924,-231.28369723,0.0003492,30]
[380041332,1755499279951,-300.0,0.0003492,30]
[380041333,1755499279979,-151.0,0.0003492,30]
[380041334,1755499280006,-151.0,0.0003492,30]
[380041335,1755499280033,-160.0,0.0003492,30]
[380041336,1755499280061,-600.0,0.0003492,30]
[380041337,1755499280090,-151.0,0.0003492,30]
[380041338,1755499280124,-308.17934679,0.0003492,30]
[380041339,1755499280153,-600.0,0.0003492,30]
[380041340,1755499280184,-151.0,0.0003492,30]
[380041341,1755499280212,-239.84119403,0.0003492,30]
[380041342,1755499280239,-156.587,0.0003492,30]
[380041343,1755499280268,-600.0,0.0003492,30]
[380041344,1755499280297,-151.0,0.0003492,30]
[380041345,1755499280324,-162.380719,0.0003492,30]
[380041346,1755499280352,-151.0,0.0003492,30]
[380041347,1755499280380,-600.0,0.0003492,30]
[380041348,1755499280406,-168.3888056,0.0003492,30]
[380041349,1755499280432,-151.0,0.0003492,30]
[380041350,1755499280461,-151.0,0.0003492,30]
[380041351,1755499280487,-174.61919141,0.0003492,30]
[380041352,1755499280513,-151.0,0.0003492,30]
[380041353,1755499280543,-151.0,0.0003492,30]
[380041354,1755499280570,-181.08010149,0.0003492,30]
[380041355,1755499280597,-151.0,0.0003492,30]
[380041356,1755499280624,-151.0,0.0003492,30]
[380041357,1755499280655,-151.0,0.0003492,30]
[380041358,1755499280683,-151.0,0.0003492,30]
[380041359,1755499280709,-5000.0,0.0003492,30]
[380041360,1755499280737,-151.0,0.0003492,30]
[380041361,1755499280764,-151.0,0.0003492,30]
[380041362,1755499280789,-151.0,0.0003492,30]
[380041363,1755499280815,-5000.0,0.0003492,30]
[380041364,1755499280842,-151.0,0.0003492,30]
[380041365,1755499281136,-151.0,0.0003492,30]
[380041366,1755499281170,-5000.0,0.0003492,30]
[380041367,1755499281199,-151.0,0.0003492,30]
[380041368,1755499281226,-5000.0,0.0003492,30]
[380041369,1755499281252,-151.0,0.0003492,30]
[380041370,1755499281279,-290.76885269,0.0003492,30]
[380041371,1755499281308,-500.0,0.0003492,30]
[380041372,1755499281336,-151.0,0.0003492,30]
[380041373,1755499281364,-5000.0,0.0003492,30]
[380041374,1755499281392,-500.0,0.0003492,30]
[380041375,1755499281420,-151.0,0.0003492,30]
[380041376,1755499281451,-500.0,0.0003492,30]
[380041377,1755499281480,-600.0,0.0003492,30]
[380041378,1755499281508,-5000.0,0.0003492,30]
[380041379,1755499281536,-500.0,0.0003492,30]
[380041380,1755499281565,-600.0,0.0003492,30]
[380041381,1755499281592,-5000.0,0.0003492,30]
[380041382,1755499281620,-500.0,0.0003492,30]
[380041383,1755499281647,-600.0,0.0003492,30]
[380041384,1755499281674,-5000.0,0.0003492,30]
[380041385,1755499281701,-500.0,0.0003492,30]
[380041386,1755499281729,-600.0,0.0003492,30]
[380041387,1755499281758,-5000.0,0.0003492,30]
[380041388,1755499281789,-600.0,0.0003492,30]
[380041389,1755499281817,-5000.0,0.0003492,30]
[380041390,1755499281844,-600.0,0.0003492,30]
[380041391,1755499281872,-5000.0,0.0003492,30]
[380041392,1755499281900,-5000.0,0.0003492,30]
[380041393,1755499281928,-5000.0,0.0003492,30]
[380041394,1755499281957,-5000.0,0.0003492,30]
[380041395,1755499281984,-5000.0,0.0003492,30]
[380041396,1755499282013,-520.0,0.0003492,30]
[380041397,1755499282042,-1000.0,0.0003492,30]
[380041398,1755499282070,-151.0,0.0003492,30]
[380041399,1755499282101,-539.24,0.0003492,30]
[380041400,1755499282130,-151.0,0.0003492,30]
[380041401,1755499282158,-1000.0,0.0003492,30]
[380041402,1755499282190,-559.19188,0.0003492,30]
[380041403,1755499282218,-200.0,0.0003492,30]
[380041404,1755499282246,-151.0,0.0003492,30]
[380041405,1755499282273,-1000.0,0.0003492,30]
[380041406,1755499282300,-579.88197956,0.0003492,30]
[380041407,1755499282328,-151.0,0.0003492,30]
[380041408,1755499282356,-1000.0,0.0003492,30]
[380041409,1755499282392,-601.3376128,0.0003492,30]